[Event "56th Rubinstein Memorial D 2020"]
[Site "Polanica Zdroj"]
[Date "2020.08.21"]
[Round "7.19"]
[White "Grzebieniowski, Michal"]
[Black "Zarzecki, Dymitr Stanislaw"]
[Result "1-0"]
[ECO "D70"]
[WhiteElo "1390"]
[BlackElo "1596"]
[Annotator "NA"]
[PlyCount "95"]
[EventDate "2020.08.15"]
[EventType "swiss"]
[EventCountry "POL"]
[SourceTitle "playchess.com"]
[Source "ChessBase"]
[SourceQuality "1"]
[TimeControl "40/5400+30:1800+30"]

1. d4 {[%emt 0:00:00]} Nf6 {[%emt 0:00:00]} 2. c4 {[%emt 0:00:00]} g6 {[%emt 0:00:00]} 3. Nf3 {[%emt 0:00:00]} Bg7 {[%emt 0:00:19]} 4. g3 {[%emt 0:00:47]} d6 {[%emt 0:01:50]} 5. Bg2 {[%emt 0:01:32]} O-O {[%emt 0:03:26]} 6. O-O {[%emt 0:00:37]} Nc6 {[%emt 0:03:18]} 7. b3 e5 {[%emt 0:05:45]} 8. Bb2 {[%emt 0:17:01]} Nh5 {[%emt 0:08:10]} 9. dxe5 {[%emt 0:05:22]} Nxe5 {[%emt 0:07:17]} 10. Nxe5 {[%emt 0:00:15]} dxe5 {[%emt 0:04:38]} 11. Nc3 {[%emt 0:03:22]} c6 {[%emt 0:10:05]} 12. Ba3 {[%emt 0:08:55]} Re8 {[%emt 0:06:31]} 13. Ne4 {[%emt 0:01:31]} Qa5 {[%emt 0:07:06]} 14. Bb2 {[%emt 0:13:40]} Rd8 {[%emt 0:06:27]} 15. Qc2 {[%emt 0:04:04]} f5 {[%emt 0:07:06]} 16. Bc3 {[%emt 0:03:25]} Qc7 {[%emt 0:01:35]} 17. Nd2 {[%emt 0:01:26]} Be6 {[%emt 0:07:39]} 18. e4 {[%emt 0:00:12]} Qd7 {[%emt 0:06:32]} 19. Rad1 {[%emt 0:00:23]} f4 {[%emt 0:03:41]} 20. Nf3 {[%emt 0:00:21]} Qc7 {[%emt 0:00:26]} 21. Qb2 {[%emt 0:02:28]} fxg3 {[%emt 0:05:34]} 22. hxg3 {[%emt 0:00:24]} Rxd1 {[%emt 0:01:33]} 23. Rxd1 {[%emt 0:00:07]} Bg4 {[%emt 0:00:48]} 24. Rd2 {[%emt 0:00:44]} Bxf3 {[%emt 0:01:27]} 25. Bxf3 {[%emt 0:00:02]} Re8 {[%emt 0:00:42]} 26. Qa1 {[%emt 0:01:29]} Nf6 {[%emt 0:00:29]} 27. b4 {[%emt 0:00:28]} b6 {[%emt 0:00:31]} 28. a3 {[%emt 0:00:51]} Bh6 {[%emt 0:00:26]} 29. Rd3 {[%emt 0:00:34]} Bg7 {[%emt 0:00:30]} 30. Qb2 {[%emt 0:00:32]} Bf8 {[%emt 0:00:34]} 31. Bg2 {[%emt 0:00:35]} a6 {[%emt 0:00:29]} 32. f4 {[%emt 0:00:43]} Nd7 {[%emt 0:00:33]} 33. Bh3 {[%emt 0:00:25]} Rd8 {[%emt 0:00:31]} 34. Be6+ {[%emt 0:00:24]} Kg7 {[%emt 0:00:29]} 35. Bxd7 {[%emt 0:00:14]} Kh6 {[%emt 0:00:32]} 36. Qh2+ {[%emt 0:00:25]} Kg7 {[%emt 0:00:16]} 37. Bxe5+ {[%emt 0:00:02]} Qxe5 {[%emt 0:00:33]} 38. fxe5 {[%emt 0:00:13]} Be7 {[%emt 0:00:27]} 39. e6 {[%emt 0:00:14]} a5 {[%emt 0:00:35]} 40. Qb2+ {[%emt 0:00:14]} Kg8 {[%emt 0:00:36]} 41. Qf2 {[%emt 0:30:25]} Rf8 {[%emt 0:30:33]} 42. Rf3 {[%emt 0:00:14]} Rxf3 {[%emt 0:00:25]} 43. Qxf3 {[%emt 0:00:07]} Bd6 {[%emt 0:00:33]} 44. Qf7+ {[%emt 0:00:23]} Kh8 {[%emt 0:00:06]} 45. e5 {[%emt 0:00:12]} c5 {[%emt 0:00:56]} 46. exd6 {[%emt 0:00:14]} h5 {[%emt 0:00:08]} 47. e7 {[%emt 0:00:06]} axb4 {[%emt 0:00:08]} 48. e8=Q# {[%emt 0:00:14]} 1-0

[Event "56th Rubinstein Memorial D 2020"]
[Site "Polanica Zdroj"]
[Date "2020.08.22"]
[Round "8.1"]
[White "Szczygiel, Konrad"]
[Black "Gromczak, Dariusz"]
[Result "1/2-1/2"]
[ECO "B06"]
[WhiteElo "1901"]
[BlackElo "1785"]
[Annotator "ChessBase"]
[PlyCount "35"]
[EventDate "2020.08.15"]
[EventType "swiss"]
[EventCountry "POL"]
[SourceTitle "playchess.com"]
[Source "ChessBase"]
[SourceQuality "1"]
[TimeControl "40/5400+30:1800+30"]

1. d4 {[%emt 0:00:17]} g6 {[%emt 0:00:00]} 2. e4 {[%emt 0:00:12]} Bg7 {[%emt 0:00:00]} 3. f4 {[%emt 0:00:38]} e6 {[%emt 0:02:17]} 4. Nf3 {[%emt 0:02:46]} Ne7 {[%emt 0:01:13]} 5. Bc4 {[%emt 0:04:00]} d5 {[%emt 0:02:17]} 6. Bd3 {[%emt 0:01:49]} dxe4 {[%emt 0:02:24]} 7. Bxe4 {[%emt 0:00:09]} c5 {[%emt 0:01:53]} 8. c3 {[%emt 0:04:09]} cxd4 {[%emt 0:00:51]} 9. Nxd4 {[%emt 0:03:07]} Nbc6 {[%emt 0:05:50]} 10. Be3 {[%emt 0:03:46]} Nxd4 {[%emt 0:02:18]} 11. Bxd4 {[%emt 0:01:31]} Bxd4 {[%emt 0:01:37]} 12. Qxd4 {[%emt 0:02:24]} Qxd4 {[%emt 0:00:23]} 13. cxd4 {[%emt 0:00:04]} Bd7 {[%emt 0:06:25]} 14. Nc3 {[%emt 0:02:50]} Bc6 {[%emt 0:01:58]} 15. Bxc6+ Nxc6 16. d5 Nb4 17. O-O-O exd5 18. Nxd5 1/2-1/2

[Event "56th Rubinstein Memorial D 2020"]
[Site "Polanica Zdroj"]
[Date "2020.08.22"]
[Round "8.2"]
[White "Simon, Marek"]
[Black "Szmidt, Przemyslaw"]
[Result "0-1"]
[ECO "D85"]
[WhiteElo "1878"]
[BlackElo "1831"]
[Annotator "NA"]
[PlyCount "90"]
[EventDate "2020.08.15"]
[EventType "swiss"]
[EventCountry "POL"]
[SourceTitle "playchess.com"]
[Source "ChessBase"]
[SourceQuality "1"]
[TimeControl "40/5400+30:1800+30"]

{[%evp 8,72,34,32767,32767,32767,32767,32767,32767,32767,32767,32767,27,-40,-11,-8,-12,-14,-15,-5,-11,-9,32767,32767,32767,32767,32767,32767,32767,-9,-2,0,32767,32767,-22,-118,-121,-116,-141,-113,-168,-135,-157,-130,-176,-146,-62,-84,-52,32767,32767,32767,-63,32767,-53,-83,-53,-75,-74,32767,32767,32767,32767,-118,32767,-69,-75]} 1. d4 {[%emt 0:00:00]} Nf6 {[%emt 0:00:00]} 2. c4 {[%emt 0:00:00]} g6 {[%emt 0:00:44]} 3. Nc3 {[%emt 0:00:10]} d5 {[%emt 0:00:53]} 4. cxd5 {[%emt 0:01:13]} Nxd5 {[%emt 0:00:13]} 5. e4 {[%emt 0:00:12]} Nxc3 {[%emt 0:00:06]} 6. bxc3 {[%emt 0:00:07]} c5 {[%emt 0:00:51]} 7. Be3 {[%emt 0:00:42]} Bg7 {[%emt 0:00:17]} 8. Qd2 {[%emt 0:01:36] 8.Rc1 injects fresh life into this line. Played by Magnus Carlsen in August 2020.} Qa5 {[%emt 0:01:47]} 9. Rc1 {[%emt 0:00:47]} O-O {[%emt 0:01:00] D85: Exchange Grünfeld: Unusual White 7th moves and lines with 7 Nf3.} 10. Be2 {[%emt 0:07:05]} cxd4 {[%emt 0:00:53]} 11. cxd4 {[%emt 0:02:15]} Qxd2+ {[%emt 0:00:36]} 12. Kxd2 {[%emt 0:00:33]} Rd8 {[%emt 0:01:18] [#]} 13. Nf3 $146 {[%emt 0:00:56]} ({Predecessor:} 13. Ke1 Nc6 14. d5 Nb4 15. a3 Na2 16. Rc2 Nc3 17. f3 e6 18. dxe6 Bxe6 19. h4 {0-1 (63) Tomin,K (2015)-Cvijic,N (2179) Senta 2006}) 13... Nc6 {[%emt 0:01:16]} 14. Rhd1 {[%emt 0:10:44]} Nxd4 {[%emt 0:04:27]} 15. Nxd4 {[%emt 0:01:57]} Bxd4 {[%emt 0:00:57]} 16. Ke1 {[%emt 0:07:28]} e5 {[%emt 0:01:54]} 17. Rc7 {[%emt 0:15:13]} Be6 {[%emt 0:00:59]} 18. Bxd4 {[%emt 0:01:13]} exd4 {[%emt 0:00:32]} 19. Rxb7 {[%emt 0:00:50]} Bxa2 {[%emt 0:00:16]} 20. Rb2 {[%emt 0:11:47]} Be6 {[%emt 0:00:23]} 21. Rb4 {[%emt 0:01:26] [#]} (21. Ra1 $11 {keeps the balance.}) 21... a5 $1 {[%emt 0:00:11]} 22. Rbxd4 {[%emt 0:02:09]} Rxd4 {[%emt 0:00:12]} 23. Rxd4 {[%emt 0:00:02]} a4 {[%emt 0:00:05]} 24. Bc4 {[%emt 0:00:20]} Bxc4 {[%emt 0:02:57]} 25. Rxc4 {[%emt 0:00:01]} a3 {[%emt 0:00:08]} 26. Rc1 {[%emt 0:00:07]} Ra4 {[%emt 0:00:29]} ({Better is} 26... a2 $17 27. Ra1 Kg7) 27. f3 {[%emt 0:00:35]} Rb4 $2 {[%emt 0:00:29]} (27... Kg7 $19 28. Ra1 a2) 28. Rc8+ {[%emt 0:02:32]} Kg7 {[%emt 0:00:06]} 29. Ra8 {[%emt 0:00:10]} Rb2 {[%emt 0:00:10]} 30. Rxa3 {[%emt 0:02:17]} Rxg2 {[%emt 0:00:10]} 31. h3 {[%emt 0:00:45]} Rg3 {[%emt 0:00:38]} 32. Kf2 {[%emt 0:00:15]} Rxh3 {[%emt 0:00:05]} 33. Kg2 {[%emt 0:02:39]} Rh5 {[%emt 0:00:07]} 34. Kg3 {[%emt 0:01:27]} Rb5 {[%emt 0:00:09]} 35. Re3 {[%emt 0:01:27]} Kf6 {[%emt 0:00:08]} 36. Ra3 {[%emt 0:00:51]} h5 $17 {[%emt 0:00:45]} 37. Kf4 {[%emt 0:04:08]} g5+ {[%emt 0:02:24]} 38. Kg3 {[%emt 0:00:15]} Kg6 {[%emt 0:00:29]} 39. Ra8 {[%emt 0:01:25]} Rb2 {[%emt 0:00:19]} 40. Rg8+ {[%emt 0:00:19]} Kf6 {[%emt 0:00:07]} 41. Rh8 {[%emt 0:33:19]} h4+ {[%emt 0:30:16]} 42. Kg4 {[%emt 0:13:52]} Rg2+ {[%emt 0:00:23]} 43. Kh5 {[%emt 0:00:50]} h3 {[%emt 0:00:17]} 44. f4 {[%emt 0:01:07]} h2 {[%emt 0:00:38]} 45. Rh6+ {[%emt 0:01:11]} Kg7 {[%emt 0:00:13]} 0-1

[Event "56th Rubinstein Memorial D 2020"]
[Site "Polanica Zdroj"]
[Date "2020.08.22"]
[Round "8.3"]
[White "Kozlowski, Pawel"]
[Black "Wawrzyniak, Pawel"]
[Result "1-0"]
[ECO "C44"]
[WhiteElo "1913"]
[BlackElo "1824"]
[Annotator "ChessBase"]
[PlyCount "37"]
[EventDate "2020.08.15"]
[EventType "swiss"]
[EventCountry "POL"]
[SourceTitle "playchess.com"]
[Source "ChessBase"]
[SourceQuality "1"]
[TimeControl "40/5400+30:1800+30"]

1. e4 {[%emt 0:04:57]} e5 {[%emt 0:00:00]} 2. Nf3 {[%emt 0:00:06]} Nc6 {[%emt 0:00:00]} 3. c3 {[%emt 0:00:09]} d5 {[%emt 0:07:00]} 4. Qa4 {[%emt 0:00:08]} Qd6 {[%emt 0:35:24]} 5. Bb5 {[%emt 0:11:21]} Bd7 {[%emt 0:01:10]} 6. exd5 {[%emt 0:03:00]} Qxd5 {[%emt 0:00:32]} 7. d4 {[%emt 0:03:01]} exd4 {[%emt 0:19:09]} 8. cxd4 {[%emt 0:07:28]} Bb4+ {[%emt 0:06:04]} 9. Bd2 {[%emt 0:10:33]} Bxd2+ {[%emt 0:07:50]} 10. Nbxd2 {[%emt 0:00:09]} Nge7 {[%emt 0:01:26]} 11. O-O {[%emt 0:04:31]} O-O {[%emt 0:00:15]} 12. Rfe1 {[%emt 0:08:47]} Qh5 {[%emt 0:07:40]} 13. Rxe7 {[%emt 0:10:50]} Nxe7 {[%emt 0:00:02]} 14. Bxd7 {[%emt 0:00:08]} c6 {[%emt 0:01:15]} 15. Qb4 {[%emt 0:02:17]} Nd5 {[%emt 0:03:19]} 16. Qxb7 {[%emt 0:00:08]} Rab8 {[%emt 0:01:13]} 17. Qxc6 {[%emt 0:01:13]} Rb6 {[%emt 0:00:50]} 18. Qc5 {[%emt 0:04:40]} Rg6 {[%emt 0:02:57]} 19. Re1 {[%emt 0:00:56]} 1-0

[Event "56th Rubinstein Memorial D 2020"]
[Site "Polanica Zdroj"]
[Date "2020.08.22"]
[Round "8.5"]
[White "Sypien, Natan"]
[Black "Lukasiewicz, Aleksander"]
[Result "0-1"]
[ECO "D59"]
[WhiteElo "1794"]
[BlackElo "1960"]
[Annotator "ChessBase"]
[PlyCount "50"]
[EventDate "2020.08.15"]
[EventType "swiss"]
[EventCountry "POL"]
[SourceTitle "playchess.com"]
[Source "ChessBase"]
[SourceQuality "1"]
[TimeControl "40/5400+30:1800+30"]

1. d4 {[%emt 0:00:00]} d5 {[%emt 0:10:58]} 2. c4 {[%emt 0:00:00]} e6 {[%emt 0:00:04]} 3. Nc3 {[%emt 0:00:00]} Be7 {[%emt 0:00:06]} 4. Nf3 {[%emt 0:03:07]} Nf6 {[%emt 0:00:04]} 5. Bg5 {[%emt 0:00:23]} h6 {[%emt 0:00:05]} 6. Bh4 {[%emt 0:01:17]} O-O {[%emt 0:00:07]} 7. e3 {[%emt 0:00:23]} b6 {[%emt 0:00:04]} 8. cxd5 {[%emt 0:00:43]} Nxd5 {[%emt 0:00:04]} 9. Nxd5 {[%emt 0:00:58]} Bxh4 {[%emt 0:07:22]} 10. Nxc7 {[%emt 0:08:01]} Bxf2+ {[%emt 0:00:31]} 11. Kxf2 {[%emt 0:00:02]} Qxc7 {[%emt 0:00:06]} 12. Rc1 {[%emt 0:00:05]} Qe7 {[%emt 0:03:25]} 13. Qc2 {[%emt 0:02:09]} Na6 {[%emt 0:00:17]} 14. a3 {[%emt 0:07:26]} Bb7 {[%emt 0:00:19]} 15. Bxa6 {[%emt 0:00:42]} Bxa6 {[%emt 0:00:05]} 16. Qc7 {[%emt 0:00:02]} Qf6 {[%emt 0:02:38]} 17. Qe5 {[%emt 0:00:06]} Qg6 {[%emt 0:08:35]} 18. Qf4 {[%emt 0:30:08]} Rac8 {[%emt 0:10:35]} 19. Ne5 {[%emt 0:00:48]} Rc2+ {[%emt 0:01:12]} 20. Rxc2 {[%emt 0:01:33]} Qxc2+ {[%emt 0:02:20]} 21. Kg3 {[%emt 0:00:02]} f6 {[%emt 0:16:17]} 22. Nd7 {[%emt 0:05:51]} Qg6+ {[%emt 0:02:35]} 23. Kf2 {[%emt 0:02:08]} Rd8 {[%emt 0:04:34]} 24. Qd6 {[%emt 0:02:46]} Qf5+ {[%emt 0:04:58]} 25. Kg3 {[%emt 0:01:59]} Bb5 {[%emt 0:00:04]} 0-1

[Event "56th Rubinstein Memorial D 2020"]
[Site "Polanica Zdroj"]
[Date "2020.08.22"]
[Round "8.7"]
[White "Kalkowski, Igor"]
[Black "Pyka, Roman"]
[Result "1-0"]
[ECO "C10"]
[WhiteElo "1747"]
[BlackElo "1873"]
[Annotator "NA"]
[PlyCount "41"]
[EventDate "2020.08.15"]
[EventType "swiss"]
[EventCountry "POL"]
[SourceTitle "playchess.com"]
[Source "ChessBase"]
[SourceQuality "1"]
[TimeControl "40/5400+30:1800+30"]

{[%evp 8,38,73,55,54,59,50,40,43,24,37,27,38,14,49,32767,32767,32767,32767,32767,32767,29,32767,32767,219,32767,112,23,32767,32767,32767,32767,829]} 1. e4 {[%emt 0:00:00]} d5 {[%emt 0:00:00]} 2. Nc3 {[%emt 0:00:00]} e6 {[%emt 0:01:10]} 3. d4 {[%emt 0:00:01]} dxe4 {[%emt 0:00:13]} 4. Nxe4 {[%emt 0:00:08]} Bd7 {[%emt 0:00:28]} 5. Nf3 {[%emt 0:01:39]} Bc6 {[%emt 0:00:09]} 6. Bd3 {[%emt 0:00:29]} Nd7 {[%emt 0:00:07]} 7. O-O {[%emt 0:00:31]} Ngf6 {[%emt 0:00:10]} 8. Ng3 {[%emt 0:00:25]} Be7 {[%emt 0:00:37]} 9. Re1 {[%emt 0:06:56]} O-O {[%emt 0:00:10]} 10. c4 {[%emt 0:06:54]} b6 {[%emt 0:00:09]} 11. Bd2 {[%emt 0:21:09]} Bb7 {[%emt 0:02:36]} 12. Bc3 {[%emt 0:00:35]} c5 {[%emt 0:06:41] [#]} 13. d5 $146 {[%emt 0:10:06] C10: French with 3 Nc3: Unusual Black 3rd moves and 3...dxe4.} ({Predecessor:} 13. Qe2 Bxf3 14. Qxf3 cxd4 15. Bxd4 Nc5 16. Bxc5 Bxc5 17. Be4 Rc8 18. Rad1 Qc7 19. a3 Rfd8 20. Rc1 a5 21. Bb7 Rb8 22. Ba6 Rd4 23. Ne2 Rd2 24. Rb1 Qd6 25. g4 Rd8 26. g5 Nd7 {0-1 (26) Rudnev,Y (2159)-Kovalenko,S (2305) Voronezh 2007}) 13... exd5 {[%emt 0:00:40]} 14. Nf5 {[%emt 0:02:14]} Re8 {[%emt 0:03:18]} 15. cxd5 {[%emt 0:02:19]} Bxd5 $2 {[%emt 0:01:02]} (15... Bf8 $1 $14) 16. Nxg7 {[%emt 0:04:55]} Kxg7 {[%emt 0:06:20]} 17. Nh4 {[%emt 0:00:46]} Be6 {[%emt 0:02:12]} 18. Qh5 {[%emt 0:03:31]} Nf8 {[%emt 0:01:11]} 19. Qg5+ {[%emt 0:06:12]} Kh8 $18 {[%emt 0:06:22]} 20. Nf5 {[%emt 0:01:30]} Bxf5 {[%emt 0:05:46]} 21. Rxe7 {[%emt 0:00:15]} 1-0

[Event "56th Rubinstein Memorial D 2020"]
[Site "Polanica Zdroj"]
[Date "2020.08.22"]
[Round "8.8"]
[White "Bienkowski, Zbigniew"]
[Black "Janicki, Rafal"]
[Result "1-0"]
[ECO "D02"]
[WhiteElo "1739"]
[BlackElo "1851"]
[Annotator "NA RC"]
[PlyCount "113"]
[EventDate "2020.08.15"]
[EventType "swiss"]
[EventCountry "POL"]
[SourceTitle "playchess.com"]
[Source "ChessBase"]
[SourceQuality "1"]
[TimeControl "40/5400+30:1800+30"]

1. d4 {[%emt 0:00:00]} Nf6 {[%emt 0:00:36]} 2. Nf3 {[%emt 0:00:21]} d5 {[%emt 0:00:56]} 3. Bf4 {[%emt 0:00:16]} e6 {[%emt 0:01:15]} 4. e3 {[%emt 0:00:15]} Bd6 {[%emt 0:00:59]} 5. Bg3 {[%emt 0:00:53]} O-O {[%emt 0:01:05]} 6. Bd3 {[%emt 0:00:14]} b6 {[%emt 0:01:03]} 7. Bh4 {[%emt 0:20:39]} c5 {[%emt 0:11:48]} 8. c3 {[%emt 0:01:08]} Nbd7 {[%emt 0:02:34]} 9. Nbd2 {[%emt 0:10:29]} Bb7 {[%emt 0:07:53]} 10. Qc2 {[%emt 0:05:30]} Qc7 {[%emt 0:02:05]} 11. g4 {[%emt 0:21:56]} (11. Bg3 $15) 11... c4 {[%emt 0:22:17]} 12. Be2 {[%emt 0:00:09]} Ne4 {[%emt 0:05:28]} 13. Nxe4 {[%emt 0:02:48]} dxe4 {[%emt 0:00:06]} 14. Nd2 {[%emt 0:00:14]} Bd5 {[%emt 0:01:11]} 15. Nxe4 {[%emt 0:14:47]} f5 $1 {[%emt 0:01:11]} 16. Nxd6 $15 {[%emt 0:02:36]} Bxh1 {[%emt 0:00:48]} 17. O-O-O {[%emt 0:01:58]} ({Better is} 17. Be7 $15) 17... Bd5 {[%emt 0:05:55]} 18. Be7 {[%emt 0:01:57]} Nf6 {[%emt 0:11:31]} 19. Bxf8 {[%emt 0:00:44]} Rxf8 {[%emt 0:00:06]} 20. g5 {[%emt 0:01:46]} Nd7 {[%emt 0:03:53]} 21. Nb5 {[%emt 0:01:25]} Qxh2 {[%emt 0:01:02]} 22. f4 {[%emt 0:01:00]} Qg3 {[%emt 0:03:34]} 23. Qd2 {[%emt 0:00:05]} Kf7 {[%emt 0:02:39]} 24. Nd6+ {[%emt 0:01:00]} Ke7 {[%emt 0:00:39]} 25. Nxc4 {[%emt 0:00:05]} Rc8 {[%emt 0:01:02]} 26. b3 {[%emt 0:00:57]} a5 {[%emt 0:01:03]} 27. Kb2 {[%emt 0:01:01]} a4 {[%emt 0:00:31]} 28. Ne5 {[%emt 0:00:39]} Nxe5 {[%emt 0:01:24]} 29. dxe5 {[%emt 0:00:07]} axb3 {[%emt 0:01:24]} 30. axb3 {[%emt 0:00:07]} Qf2 {[%emt 0:00:43]} 31. c4 {[%emt 0:01:17]} Bc6 {[%emt 0:00:08]} 32. Rf1 {[%emt 0:03:32]} Qg2 {[%emt 0:00:37]} 33. Rd1 {[%emt 0:00:02]} Qf2 {[%emt 0:00:11]} 34. Qd3 {[%emt 0:00:23]} Qg2 {[%emt 0:02:04]} 35. Rd2 {[%emt 0:00:18]} Qe4 {[%emt 0:02:39]} 36. Qd4 {[%emt 0:02:06]} Qxd4+ {[%emt 0:00:50]} 37. exd4 {[%emt 0:00:07]} Rd8 {[%emt 0:00:21]} 38. Kc3 {[%emt 0:00:04]} h6 {[%emt 0:00:28]} 39. gxh6 {[%emt 0:00:13]} gxh6 {[%emt 0:00:05]} 40. Bh5 {[%emt 0:01:27]} Be4 {[%emt 0:01:12]} 41. Ra2 {[%emt 0:30:39]} Rg8 {[%emt 0:30:28]} 42. Ra7+ {[%emt 0:00:07]} Kd8 {[%emt 0:00:06]} 43. d5 {[%emt 0:01:25]} Rg3+ {[%emt 0:00:53]} 44. Kb4 {[%emt 0:00:01]} Bc2 {[%emt 0:01:05]} 45. Ra8+ {[%emt 0:01:56]} Kc7 {[%emt 0:00:09]} 46. d6+ {[%emt 0:00:03]} Kc6 47. Ra3 {[%emt 0:00:22]} Rh3 {[%emt 0:01:42]} 48. Bf7 {[%emt 0:00:16]} Kd7 {[%emt 0:00:18]} 49. Ra7+ {[%emt 0:00:55]} Kd8 {[%emt 0:00:34]} 50. Ra3 {[%emt 0:01:13]} Kd7 {[%emt 0:00:09]} 51. c5 {[%emt 0:00:21]} bxc5+ {[%emt 0:01:19]} 52. Kxc5 {[%emt 0:00:07]} Rc3+ {[%emt 0:00:54]} 53. Kb4 {[%emt 0:00:29]} Rf3 {[%emt 0:00:32]} 54. Ra7+ {[%emt 0:00:08]} Kc6 {[%emt 0:01:22]} 55. Rc7+ {[%emt 0:00:43]} Kb6 {[%emt 0:00:13]} 56. Rxc2 {[%emt 0:00:11]} Rxf4+ {[%emt 0:00:07]} 57. Rc4 {[%emt 0:00:08]} 1-0

[Event "56th Rubinstein Memorial D 2020"]
[Site "Polanica Zdroj"]
[Date "2020.08.22"]
[Round "8.9"]
[White "Kaczanowski, Pawel"]
[Black "Szczygiel, Jakub"]
[Result "1-0"]
[ECO "B38"]
[WhiteElo "1655"]
[BlackElo "1802"]
[Annotator "NA"]
[PlyCount "79"]
[EventDate "2020.08.15"]
[EventType "swiss"]
[EventCountry "POL"]
[SourceTitle "playchess.com"]
[Source "ChessBase"]
[SourceQuality "1"]
[TimeControl "40/5400+30:1800+30"]

1. e4 {[%emt 0:00:00]} c5 {[%emt 0:00:00]} 2. Nf3 {[%emt 0:00:00]} g6 {[%emt 0:00:00]} 3. d4 {[%emt 0:00:00]} cxd4 {[%emt 0:00:00]} 4. Nxd4 {[%emt 0:00:00]} Nc6 {[%emt 0:00:00]} 5. c4 {[%emt 0:00:00]} Bg7 {[%emt 0:00:16]} 6. Be3 {[%emt 0:00:11]} Nf6 {[%emt 0:00:09]} 7. Nc3 {[%emt 0:00:07]} d6 {[%emt 0:00:18]} 8. Be2 {[%emt 0:00:21]} O-O {[%emt 0:00:31]} 9. Qd2 {[%emt 0:01:02]} Nxd4 {[%emt 0:00:24]} 10. Bxd4 {[%emt 0:00:06]} Qa5 {[%emt 0:00:14]} 11. f3 {[%emt 0:02:08]} Be6 {[%emt 0:00:38]} 12. Be3 {[%emt 0:16:35]} Rfc8 {[%emt 0:00:51]} 13. b3 {[%emt 0:01:33]} a6 {[%emt 0:09:25]} 14. Rc1 {[%emt 0:04:18]} b5 {[%emt 0:00:57]} 15. Nd5 {[%emt 0:01:57]} Qxd2+ {[%emt 0:00:52]} 16. Kxd2 {[%emt 0:00:18]} Nxd5 {[%emt 0:00:18]} 17. cxd5 {[%emt 0:10:03]} Bd7 {[%emt 0:00:23]} 18. Rxc8+ {[%emt 0:02:40]} Rxc8 $11 {[%emt 0:00:19]} 19. Rc1 {[%emt 0:00:04]} Rxc1 {[%emt 0:00:21]} 20. Kxc1 {[%emt 0:00:04]} Kf8 {[%emt 0:00:16]} 21. Kc2 {[%emt 0:01:12]} Ke8 {[%emt 0:00:08]} 22. Kd3 {[%emt 0:01:25]} Kd8 {[%emt 0:00:22]} 23. Bd4 {[%emt 0:00:17]} Bxd4 {[%emt 0:00:42]} 24. Kxd4 {[%emt 0:00:05]} Kc7 {[%emt 0:00:31]} 25. b4 {[%emt 0:00:15]} e5+ {[%emt 0:01:30]} 26. dxe6 {[%emt 0:00:38]} Bxe6 {[%emt 0:00:24]} 27. a3 {[%emt 0:00:05]} h6 {[%emt 0:02:09]} 28. f4 {[%emt 0:00:57]} Kc6 {[%emt 0:03:49]} 29. Bf3 {[%emt 0:02:00]} Bc8 {[%emt 0:01:53]} 30. h4 {[%emt 0:03:42]} Kc7 {[%emt 0:02:13]} 31. e5 {[%emt 0:00:43]} Be6 {[%emt 0:00:37]} 32. h5 {[%emt 0:10:18]} Kd7 {[%emt 0:01:03]} 33. hxg6 {[%emt 0:02:38]} fxg6 {[%emt 0:00:10]} 34. Bb7 {[%emt 0:00:53]} g5 {[%emt 0:01:46]} 35. fxg5 {[%emt 0:02:06]} hxg5 {[%emt 0:00:14]} 36. Bxa6 {[%emt 0:09:10]} Kc6 {[%emt 0:00:14]} 37. exd6 {[%emt 0:00:17]} Kb6 {[%emt 0:00:09]} 38. Ke5 {[%emt 0:03:09]} Bd7 {[%emt 0:00:38]} 39. Kf6 {[%emt 0:01:00]} Kxa6 {[%emt 0:01:47]} 40. Ke7 1-0

[Event "56th Rubinstein Memorial D 2020"]
[Site "Polanica Zdroj"]
[Date "2020.08.22"]
[Round "8.10"]
[White "Lisiecki, Robert"]
[Black "Bukala, Weronika"]
[Result "0-1"]
[ECO "B20"]
[WhiteElo "1749"]
[BlackElo "1504"]
[Annotator "NA"]
[PlyCount "68"]
[EventDate "2020.08.15"]
[EventType "swiss"]
[EventCountry "POL"]
[SourceTitle "playchess.com"]
[Source "ChessBase"]
[SourceQuality "1"]
[TimeControl "40/5400+30:1800+30"]

1. e4 {[%emt 0:00:00]} c5 {[%emt 0:00:00]} 2. b3 {[%emt 0:00:00]} Nc6 {[%emt 0:00:11]} 3. Bb2 {[%emt 0:00:06]} e6 {[%emt 0:00:25]} 4. Bb5 {[%emt 0:00:15]} Nf6 {[%emt 0:00:50]} 5. d3 {[%emt 0:00:22]} g6 {[%emt 0:01:45]} 6. Bxc6 {[%emt 0:00:20]} bxc6 {[%emt 0:00:13]} 7. Nd2 {[%emt 0:01:46]} Bg7 {[%emt 0:00:47]} 8. f4 {[%emt 0:00:10]} O-O {[%emt 0:02:27]} 9. Qe2 {[%emt 0:00:31]} d5 {[%emt 0:02:35]} 10. O-O-O {[%emt 0:01:21]} Qa5 {[%emt 0:02:51]} 11. Kb1 {[%emt 0:00:16]} Ba6 {[%emt 0:02:23]} 12. g4 {[%emt 0:01:40]} c4 {[%emt 0:03:46]} 13. dxc4 {[%emt 0:02:57]} dxc4 {[%emt 0:00:26]} 14. Nxc4 {[%emt 0:07:30]} Bxc4 {[%emt 0:00:37]} 15. Qxc4 {[%emt 0:00:02]} Nxg4 {[%emt 0:00:40]} 16. Bxg7 {[%emt 0:03:48]} Ne3 {[%emt 0:04:19]} 17. Bc3 {[%emt 0:00:14]} Qh5 {[%emt 0:03:15]} 18. Qd4 {[%emt 0:03:20]} Qxd1+ {[%emt 0:00:21]} 19. Qxd1 {[%emt 0:00:10]} Nxd1 {[%emt 0:00:09]} 20. Bd4 {[%emt 0:00:01]} Rfd8 {[%emt 0:03:53]} 21. Ne2 {[%emt 0:00:25]} c5 {[%emt 0:01:39]} 22. Rxd1 {[%emt 0:00:05]} cxd4 {[%emt 0:00:10]} 23. Rxd4 {[%emt 0:00:01]} Rxd4 {[%emt 0:01:53]} 24. Nxd4 {[%emt 0:00:01]} Rc8 {[%emt 0:00:56]} 25. Kb2 {[%emt 0:00:13]} Rc5 {[%emt 0:00:33]} 26. e5 {[%emt 0:01:52]} g5 {[%emt 0:10:42]} 27. fxg5 {[%emt 0:03:22]} Rxe5 {[%emt 0:00:20]} 28. Nc6 {[%emt 0:00:01]} Rxg5 {[%emt 0:00:14]} 29. Nxa7 {[%emt 0:00:02]} f5 {[%emt 0:02:15]} 30. Nc6 {[%emt 0:00:47]} f4 {[%emt 0:00:30]} 31. Nd4 {[%emt 0:00:10]} e5 {[%emt 0:00:40]} 32. Nf3 {[%emt 0:00:04]} Rh5 {[%emt 0:00:18]} 33. a4 {[%emt 0:00:12]} e4 {[%emt 0:00:11]} 34. Nd4 {[%emt 0:00:01]} f3 {[%emt 0:00:44]} 0-1